fUST/lending_fUST_20241007
["ID","MTS","AMOUNT","RATE_DAILY","PERIOD"]
[339971608,1728245451118,-500.0,0.00013972,2]
[339971609,1728245451129,-500.0,0.00013972,2]
[339971610,1728245451144,-500.0,0.00013972,2]
[339971611,1728245451155,-500.0,0.00013972,2]
[339971612,1728245451166,-500.0,0.00013972,2]
[339971613,1728245451177,-500.0,0.00013972,2]
[339971614,1728245451187,-500.0,0.00013972,2]
[339971615,1728245451199,-500.0,0.00013972,2]
[339971616,1728245451209,-500.0,0.00013972,2]
[339971617,1728245451218,-500.0,0.00013972,2]
[339971618,1728245451228,-559.4,0.00013972,2]
[339971619,1728245451237,-620.94,0.00013972,2]
[339971620,1728245451246,-570.64,0.00013972,2]
[339971621,1728245451255,-590.68,0.00013972,2]
[339971622,1728245451266,-525.69,0.00013972,2]
[339971623,1728245451277,-731.95,0.00013972,2]
[339971624,1728245451288,-500.0,0.00013972,2]
[339971625,1728245451298,-500.0,0.00013972,2]
[339971626,1728245451310,-500.0,0.00013972,2]
[339971627,1728245451321,-500.0,0.00013972,2]
[339971628,1728245451331,-749.78,0.00013972,2]
[339971629,1728245451344,-500.0,0.00013972,2]
[339971630,1728245451353,-500.0,0.00013972,2]
[339971631,1728245451364,-500.0,0.00013972,2]
[339971632,1728245451374,-500.0,0.00013972,2]
[339971633,1728245451386,-500.0,0.00013972,2]
[339971634,1728245451396,-500.0,0.00013972,2]
[339971635,1728245451406,-500.0,0.00013972,2]
[339971636,1728245451417,-850.21,0.00013972,2]
[339971637,1728245451429,-700.34,0.00013972,2]
[339971638,1728245451440,-500.0,0.00013972,2]
[339971639,1728245451450,-500.0,0.00013972,2]
[339971640,1728245451462,-793.43,0.00013972,2]
[339971641,1728245451473,-500.0,0.00013972,2]
[339971642,1728245451485,-681.81,0.00013972,2]
[339971643,1728245451495,-160.09038617,0.00013972,2]
[339971644,1728245451504,-500.0,0.00013972,2]
[339971645,1728245451513,-500.0,0.00013972,2]
[339971646,1728245451524,-500.0,0.00013972,2]
[339971647,1728245451535,-500.0,0.00013972,2]
[339971648,1728245451546,-392.77549289,0.00013972,2]
[339971649,1728245451557,-618.07,0.00013972,2]
[339971650,1728245451571,-905.5,0.00013972,2]
[339971651,1728245451580,-500.0,0.00013972,2]
[339971652,1728245451590,-500.0,0.00013972,2]
[339971653,1728245451599,-500.0,0.00013972,2]
[339971654,1728245451608,-500.0,0.00013972,2]
[339971655,1728245451617,-1004.36,0.00013972,2]
[339971656,1728245451626,-2500.0,0.00013972,2]
[339971657,1728245451635,-769.79,0.00013972,2]
[339971658,1728245451644,-556.25,0.00013972,2]
[339971659,1728245451654,-500.0,0.00013972,2]
[339971660,1728245451663,-704.99,0.00013972,2]
[339971661,1728245451673,-511.68,0.00013972,2]
[339971662,1728245451682,-500.0,0.00013972,2]
[339971663,1728245451693,-500.0,0.00013972,2]
[339971664,1728245451704,-500.0,0.00013972,2]
[339971665,1728245451715,-500.0,0.00013972,2]
[339971666,1728245451725,-500.0,0.00013972,2]
[339971667,1728245451736,-500.0,0.00013972,2]
[339971668,1728245451747,-500.0,0.00013972,2]
[339971669,1728245451757,-716.88,0.00013972,2]
[339971670,1728245451767,-500.0,0.00013972,2]
[339971671,1728245451778,-210.80882037,0.00013972,2]
[339971672,1728245451788,-500.0,0.00013972,2]
[339971673,1728245451799,-500.0,0.00013972,2]
[339971674,1728245451810,-500.0,0.00013972,2]
[339971675,1728245451821,-514.55877139,0.00013972,2]
[339971676,1728245451830,-577.93008809,0.00013972,2]
[339971677,1728245451840,-500.0,0.00013972,2]
[339971678,1728245451850,-500.0,0.00013972,2]
[339971679,1728245451862,-500.0,0.00013972,2]
[339971680,1728245451874,-502.96,0.00013972,2]
[339971681,1728245451887,-1213.0,0.00013972,2]
[339971682,1728245451896,-500.0,0.00013972,2]
[339971683,1728245451906,-500.0,0.00013972,2]
[339971684,1728245451917,-500.0,0.00013972,2]
[339971685,1728245451927,-179.51829653,0.00013972,2]
[339971686,1728245451937,-500.0,0.00013972,2]
[339971687,1728245451949,-491.03070145,0.00013972,2]
[339971688,1728245451960,-500.0,0.00013972,2]
[339971689,1728245451971,-500.0,0.00013972,2]
[339971690,1728245451981,-500.0,0.00013972,2]
[339971691,1728245451990,-500.0,0.00013972,2]
[339971692,1728245452002,-500.0,0.00013972,2]
[339971693,1728245452012,-500.0,0.00013972,2]
[339971694,1728245452023,-500.0,0.00013972,2]
[339971695,1728245452032,-500.0,0.00013972,2]
[339971696,1728245452044,-500.0,0.00013972,2]
[339971697,1728245452055,-500.0,0.00013972,2]
[339971698,1728245452067,-640.83,0.00013972,2]
[339971699,1728245452078,-500.0,0.00013972,2]
[339971700,1728245452089,-799.58,0.00013972,2]
[339971701,1728245452101,-500.0,0.00013972,2]
[339971702,1728245452113,-2198.44,0.00013972,2]
[339971703,1728245452125,-500.0,0.00013972,2]
[339971704,1728245452136,-500.0,0.00013972,2]
[339971705,1728245452149,-500.0,0.00013972,2]
[339971706,1728245452159,-500.0,0.00013972,2]
[339971707,1728245452171,-701.74,0.00013972,2]
[339971708,1728245452182,-500.0,0.00013972,2]
[339971709,1728245452197,-500.0,0.00013972,2]
[339971710,1728245452207,-500.0,0.00013972,2]
[339971711,1728245452217,-500.0,0.00013972,2]
[339971712,1728245452228,-23220.06,0.00013972,2]
[339971713,1728245452239,-513.24,0.00013972,2]
[339971714,1728245452250,-500.0,0.00013972,2]
[339971715,1728245452262,-500.0,0.00013972,2]
[339971716,1728245452273,-1825.72,0.00013972,2]
[339971717,1728245452284,-538.0702714,0.00013972,2]
[339971718,1728245452295,-530.98318467,0.00013972,2]
[339971719,1728245452307,-500.0,0.00013972,2]
[339971720,1728245452318,-3809.25,0.00013972,2]
[339971721,1728245452331,-500.0,0.00013972,2]
[339971722,1728245452341,-689.01,0.00013972,2]
[339971723,1728245452352,-500.0,0.00013972,2]
[339971724,1728245452361,-500.0,0.00013972,2]
[339971725,1728245452370,-500.0,0.00013972,2]
[339971726,1728245452381,-1068.37,0.00013972,2]
[339971727,1728245452392,-500.0,0.00013972,2]
[339971728,1728245452403,-500.0,0.00013972,2]
[339971729,1728245452413,-500.0,0.00013972,2]
[339971730,1728245452422,-500.0,0.00013972,2]
[339971731,1728245452432,-500.0,0.00013972,2]
[339971732,1728245452443,-1019.82,0.00013972,2]
[339971733,1728245452455,-1687.94,0.00013972,2]
[339971734,1728245452465,-500.0,0.00013972,2]
[339971735,1728245452475,-500.0,0.00013972,2]
[339971736,1728245452487,-500.0,0.00013972,2]
[339971737,1728245452498,-462.50926726,0.00013972,2]
[339971738,1728245452509,-500.0,0.00013972,2]
[339971739,1728245452519,-611.72,0.00013972,2]
[339971740,1728245452529,-500.0,0.00013972,2]
[339971741,1728245452540,-500.0,0.00013972,2]
[339971742,1728245452551,-500.0,0.00013972,2]
[339971743,1728245452562,-500.0,0.00013972,2]
[339971744,1728245452574,-500.0,0.00013972,2]
[339971745,1728245452584,-500.0,0.00013972,2]
[339971746,1728245452596,-564.15,0.00013972,2]
[339971747,1728245452607,-500.0,0.00013972,2]
[339971748,1728245452619,-608.82,0.00013972,2]
[339971749,1728245452632,-605.81,0.00013972,2]
[339971750,1728245452643,-500.0,0.00013972,2]
[339971751,1728245452654,-1003.97,0.00013972,2]
[339971752,1728245452667,-500.0,0.00013972,2]
[339971753,1728245452677,-500.0,0.00013972,2]
[339971754,1728245452686,-541.62,0.00013972,2]
[339971755,1728245452695,-500.0,0.00013972,2]
[339971756,1728245452707,-500.0,0.00013972,2]
[339971757,1728245452718,-589.17,0.00013972,2]
[339971758,1728245452728,-500.0,0.00013972,2]
[339971759,1728245452739,-1166.46,0.00013972,2]
[339971760,1728245452750,-500.0,0.00013972,2]
[339971761,1728245452760,-500.0,0.00013972,2]
[339971762,1728245452772,-606.03,0.00013972,2]
[339971763,1728245452784,-500.0,0.00013972,2]
[339971764,1728245452794,-500.0,0.00013972,2]
[339971765,1728245452804,-500.0,0.00013972,2]
[339971766,1728245452814,-578.55,0.00013972,2]
[339971767,1728245452824,-500.0,0.00013972,2]
[339971768,1728245452833,-526.31,0.00013972,2]
[339971769,1728245452843,-500.0,0.00013972,2]
[339971770,1728245452853,-500.0,0.00013972,2]
[339971771,1728245452864,-500.0,0.00013972,2]
[339971772,1728245452874,-500.0,0.00013972,2]
[339971773,1728245452884,-500.0,0.00013972,2]
[339971774,1728245452895,-616.98,0.00013972,2]
[339971775,1728245452906,-500.0,0.00013972,2]
[339971776,1728245452916,-500.0,0.00013972,2]
[339971777,1728245452927,-500.0,0.00013972,2]
[339971778,1728245452939,-360.42359913,0.00013972,2]
[339971779,1728245452951,-500.0,0.00013972,2]
[339971780,1728245452960,-500.0,0.00013972,2]
[339971781,1728245452971,-500.0,0.00013972,2]
[339971782,1728245452981,-500.0,0.00013972,2]
[339971783,1728245452991,-500.0,0.00013972,2]
[339971784,1728245453000,-500.0,0.00013972,2]
[339971785,1728245453013,-667.06,0.00013972,2]
[339971786,1728245453022,-500.0,0.00013972,2]
[339971787,1728245453031,-500.0,0.00013972,2]
[339971788,1728245453041,-500.0,0.00013972,2]
[339971789,1728245453050,-500.0,0.00013972,2]
[339971790,1728245453061,-500.0,0.00013972,2]
[339971791,1728245453072,-500.0,0.00013972,2]
[339971792,1728245453081,-500.0,0.00013972,2]
[339971793,1728245453093,-500.0,0.00013972,2]
[339971794,1728245453105,-500.0,0.00013972,2]
[339971795,1728245453117,-500.0,0.00013972,2]
[339971796,1728245453128,-500.0,0.00013972,2]
[339971797,1728245453139,-361.45822541,0.00013972,2]
[339971798,1728245453150,-500.0,0.00013972,2]
[339971799,1728245453159,-500.0,0.00013972,2]
[339971800,1728245453169,-500.0,0.00013972,2]
[339971801,1728245453178,-1854.38,0.00013972,2]
[339971802,1728245453188,-262.8054765,0.00013972,2]
[339971803,1728245453197,-500.0,0.00013972,2]
[339971804,1728245453207,-500.0,0.00013972,2]
[339971805,1728245453217,-500.0,0.00013972,2]
[339971806,1728245453226,-2983.12,0.00013972,2]
[339971807,1728245453237,-500.0,0.00013972,2]
[339971808,1728245453246,-500.0,0.00013972,2]
[339971809,1728245453255,-230.03755597,0.00013972,2]
[339971810,1728245453265,-500.0,0.00013972,2]
[339971811,1728245453275,-667.95,0.00013972,2]
[339971812,1728245453286,-500.0,0.00013972,2]
[339971813,1728245453296,-830.07,0.00013972,2]
[339971814,1728245453306,-518.7,0.00013972,2]
[339971815,1728245453317,-500.0,0.00013972,2]
[339971816,1728245453327,-500.0,0.00013972,2]
[339971817,1728245453337,-500.0,0.00013972,2]
[339971818,1728245453347,-539.02863968,0.00013972,2]
[339971819,1728245453359,-2165.89,0.00013972,2]
[339971820,1728245453371,-500.0,0.00013972,2]
[339971821,1728245453382,-500.0,0.00013972,2]
[339971822,1728245453393,-880.03,0.00013972,2]
[339971823,1728245453404,-3094.43,0.00013972,2]
[339971824,1728245453415,-701.44,0.00013972,2]
[339971825,1728245453427,-500.0,0.00013972,2]
[339971826,1728245453439,-500.0,0.00013972,2]
[339971827,1728245453450,-500.0,0.00013972,2]
[339971828,1728245453461,-1213.43,0.00013972,2]
[339971829,1728245453472,-4696.79,0.00013972,2]
[339971830,1728245453484,-500.0,0.00013972,2]
[339971831,1728245453495,-505.3,0.00013972,2]
[339971832,1728245453504,-531.08122194,0.00013972,2]
[339971833,1728245453514,-500.0,0.00013972,2]
[339971834,1728245453523,-507.4,0.00013972,2]
[339971835,1728245453533,-500.0,0.00013972,2]
[339971836,1728245453542,-500.0,0.00013972,2]
[339971837,1728245453552,-500.0,0.00013972,2]
[339971838,1728245453561,-500.0,0.00013972,2]
[339971839,1728245453573,-192.3180103,0.00013972,2]
[339971840,1728245453583,-500.0,0.00013972,2]
[339971841,1728245453593,-323.01297059,0.00013972,2]
[339971842,1728245453605,-158.7790123,0.00013973,2]
[339971843,1728245453616,-500.0,0.00013973,2]
[339971844,1728245453627,-500.0,0.00013973,2]
[339971845,1728245453638,-500.0,0.00013973,2]
[339971846,1728245453648,-500.45600207,0.00013973,2]
[339971847,1728245453658,-500.0,0.00013973,2]
[339971848,1728245453668,-500.0,0.00013973,2]
[339971849,1728245453679,-500.0,0.00013973,2]
[339971850,1728245453690,-500.0,0.00013973,2]
[339971851,1728245453701,-502.34640883,0.00013973,2]
[339971852,1728245453711,-500.0,0.00013973,2]
[339971853,1728245453723,-500.0,0.00013973,2]
[339971854,1728245453734,-500.0,0.00013973,2]
[339971855,1728245453743,-500.0,0.00013973,2]
[339971856,1728245453753,-501.57733193,0.00013973,2]
[339971857,1728245453764,-500.0,0.00013973,2]
[339971858,1728245453774,-500.0,0.00013973,2]
[339971859,1728245453784,-500.0,0.00013973,2]
[339971860,1728245453795,-500.0,0.00013973,2]
[339971861,1728245453806,-500.0,0.00013973,2]
[339971862,1728245453816,-8762.95152195,0.0001399,2]
[339971863,1728245453828,-160.0,0.00014,3]
[339971864,1728245453839,-246.45086748,0.00014,5]
[339971865,1728245453851,-14991.39486284,0.00014,4]
[339971866,1728245453863,-500.0,0.00014,2]
[339971867,1728245453873,-735.5637284,0.00014,2]
[339971868,1728245453883,-29613.77981448,0.00014,2]
[339971869,1728245453894,-212.096226,0.00014,2]
[339971870,1728245453907,-212.096226,0.00014,2]
[339971871,1728245453917,-150.112233,0.00014,2]
[339971872,1728245453927,-150.112233,0.00014,2]
[339971873,1728245453936,-207.4221196,0.00014,2]
[339971874,1728245453945,-150.112233,0.00014,2]
[339971875,1728245453955,-150.112233,0.00014,2]
[339971876,1728245453964,-868.80619176,0.00014,2]
[339971877,1728245453973,-166.666666,0.00014019,2]
[339971878,1728245453983,-190.0,0.00014024,2]
[339971879,1728245453992,-630.768006,0.00014089,2]
[339971880,1728245454002,-167.913167,0.00014089,2]
[339971881,1728245454011,-1508.815468,0.00014089,2]
[339971882,1728245454023,-150.112233,0.000141,2]
[339971883,1728245454032,-150.112233,0.000141,2]
[339971884,1728245454042,-150.112233,0.000141,2]
[339971885,1728245454051,-1000.0,0.0001411,2]
[339971886,1728245454061,-883.98312815,0.0001411,2]
[339971887,1728245454071,-1000.0,0.0001411,2]
[339971888,1728245454080,-504.78847861,0.0001411,2]
[339971889,1728245454090,-1000.0,0.0001411,2]
[339971890,1728245454100,-1000.0,0.0001411,2]
[339971891,1728245454110,-807.17377445,0.0001411,2]
[339971892,1728245454119,-501.13880458,0.0001411,2]
[339971893,1728245454256,-1000.0,0.0001411,2]
[339971894,1728245454266,-463.14550871,0.0001411,2]
[339971895,1728245454275,-1000.0,0.0001411,2]
[339971896,1728245454285,-1000.0,0.0001411,2]
[339971897,1728245454294,-1000.0,0.0001411,2]
[339971898,1728245454304,-331.17434478,0.0001411,2]
[339971899,1728245454313,-1000.0,0.0001411,2]
[339971900,1728245454323,-500.27591686,0.0001411,2]
[339971901,1728245454332,-266.15252212,0.00014114,2]
[339971902,1728245454341,-150.112233,0.000142,2]
[339971903,1728245454351,-150.112233,0.000142,2]
[339971904,1728245454360,-150.0,0.00014246,2]
[339971905,1728245454369,-461.0,0.00014246,2]
[339971906,1728245454379,-500.0,0.00014246,2]
[339971907,1728245454388,-212.096226,0.00014246,2]
[339971908,1728245454398,-212.096226,0.00014246,2]
[339971909,1728245454407,-500.0,0.00014246,2]
[339971910,1728245454417,-500.0,0.00014246,2]
[339971911,1728245454426,-500.0,0.00014246,2]
[339971912,1728245454436,-500.0,0.00014246,2]
[339971913,1728245454445,-538.21,0.00014246,2]
[339971914,1728245454454,-500.0,0.00014246,2]
[339971915,1728245454466,-500.0,0.00014246,2]
[339971916,1728245454475,-500.0,0.00014246,2]
[339971917,1728245454485,-500.0,0.00014246,2]
[339971918,1728245454494,-500.0,0.00014246,2]
[339971919,1728245454503,-500.0,0.00014246,2]
[339971920,1728245454514,-500.0,0.00014246,2]
[339971921,1728245454524,-690.31,0.00014246,2]
[339971922,1728245454533,-500.0,0.00014246,2]
[339971923,1728245454544,-753.75,0.00014246,2]
[339971924,1728245454555,-500.0,0.00014246,2]
[339971925,1728245454565,-500.0,0.00014246,2]
[339971926,1728245454576,-500.0,0.00014246,2]
[339971927,1728245454586,-215.80921596,0.00014246,2]
[339971928,1728245454598,-616.83419825,0.00014246,2]
[339971929,1728245454609,-500.0,0.00014246,2]
[339971930,1728245454619,-560.51,0.00014246,2]
[339971931,1728245454630,-494.40963815,0.00014246,2]
[339971932,1728245454640,-500.0,0.00014246,2]
[339971933,1728245454653,-693.21,0.00014246,2]
[339971934,1728245454663,-750.67,0.00014246,2]
[339971935,1728245454673,-624.79,0.00014246,2]
[339971936,1728245454685,-500.0,0.00014246,2]
[339971937,1728245454697,-500.0,0.00014246,2]
[339971938,1728245454707,-500.0,0.00014246,2]
[339971939,1728245454717,-500.0,0.00014246,2]
[339971940,1728245454729,-500.0,0.00014246,2]
[339971941,1728245454740,-500.0,0.00014246,2]
[339971942,1728245454751,-500.0,0.00014246,2]
[339971943,1728245454761,-500.0,0.00014246,2]
[339971944,1728245454773,-621.15,0.00014246,2]
[339971945,1728245454784,-573.68,0.00014246,2]
[339971946,1728245454793,-500.0,0.00014246,2]
[339971947,1728245454805,-500.0,0.00014246,2]
[339971948,1728245454815,-500.0,0.00014246,2]
[339971949,1728245454828,-500.0,0.00014246,2]
[339971950,1728245454839,-500.0,0.00014246,2]
[339971951,1728245454850,-500.0,0.00014246,2]
[339971952,1728245454861,-566.65,0.00014246,2]
[339971953,1728245454872,-500.0,0.00014246,2]
[339971954,1728245454883,-224.0746718,0.00014246,2]
[339971955,1728245454893,-500.0,0.00014246,2]
[339971956,1728245454904,-1154.19,0.00014246,2]
[339971957,1728245454914,-500.0,0.00014246,2]
[339971958,1728245454925,-500.0,0.00014246,2]
[339971959,1728245454936,-500.0,0.00014246,2]
[339971960,1728245454948,-500.0,0.00014246,2]
[339971961,1728245454959,-500.0,0.00014246,2]
[339971962,1728245454969,-375.33273509,0.00014246,2]
[339971963,1728245454980,-511.18,0.00014246,2]
[339971964,1728245454992,-1179.38,0.00014246,2]
[339971965,1728245455002,-500.0,0.00014246,2]
[339971966,1728245455015,-751.93,0.00014246,2]
[339971967,1728245455025,-500.0,0.00014246,2]
[339971968,1728245455036,-500.0,0.00014246,2]
[339971969,1728245455047,-500.0,0.00014246,2]
[339971970,1728245455059,-500.0,0.00014246,2]
[339971971,1728245455071,-500.0,0.00014246,2]
[339971972,1728245455082,-734.54,0.00014246,2]
[339971973,1728245455092,-500.0,0.00014246,2]
[339971974,1728245455104,-500.0,0.00014246,2]
[339971975,1728245455114,-500.0,0.00014246,2]
[339971976,1728245455125,-500.0,0.00014246,2]
[339971977,1728245455138,-500.0,0.00014246,2]
[339971978,1728245455150,-500.0,0.00014246,2]
[339971979,1728245455162,-500.0,0.00014246,2]
[339971980,1728245455172,-500.0,0.00014246,2]
[339971981,1728245455183,-242.04746464,0.00014246,2]
[339971982,1728245455193,-500.0,0.00014246,2]
[339971983,1728245455204,-782.03,0.00014246,2]
[339971984,1728245455215,-500.0,0.00014246,2]
[339971985,1728245455226,-500.0,0.00014246,2]
[339971986,1728245455238,-500.0,0.00014246,2]
[339971987,1728245455248,-500.0,0.00014246,2]
[339971988,1728245455260,-500.0,0.00014246,2]
[339971989,1728245455271,-500.0,0.00014246,2]
[339971990,1728245455283,-600.57,0.00014246,2]
[339971991,1728245455294,-500.0,0.00014246,2]
[339971992,1728245455305,-1034.12,0.00014246,2]
[339971993,1728245455316,-155.65937987,0.00014246,2]
[339971994,1728245455326,-500.0,0.00014246,2]
[339971995,1728245455338,-500.0,0.00014246,2]
[339971996,1728245455350,-500.0,0.00014246,2]
[339971997,1728245455361,-500.0,0.00014246,2]
[339971998,1728245455371,-500.0,0.00014246,2]
[339971999,1728245455381,-500.0,0.00014246,2]
[339972000,1728245455393,-500.0,0.00014246,2]
[339972001,1728245455404,-500.0,0.00014246,2]
[339972002,1728245455414,-500.0,0.00014246,2]
[339972003,1728245455423,-500.0,0.00014246,2]
[339972004,1728245455432,-500.0,0.00014246,2]
[339972005,1728245455441,-567.02,0.00014246,2]
[339972006,1728245455453,-500.0,0.00014246,2]
[339972007,1728245455464,-547.51,0.00014246,2]
[339972008,1728245455476,-620.41,0.00014246,2]
[339972009,1728245455486,-500.0,0.00014246,2]
[339972010,1728245455495,-500.0,0.00014246,2]
[339972011,1728245455505,-500.0,0.00014246,2]
[339972012,1728245455514,-500.0,0.00014246,2]
[339972013,1728245455525,-500.0,0.00014246,2]
[339972014,1728245455536,-622.64,0.00014246,2]
[339972015,1728245455547,-500.0,0.00014246,2]
[339972016,1728245455559,-1766.09,0.00014246,2]
[339972017,1728245455569,-1018.45,0.00014246,2]
[339972018,1728245455579,-500.0,0.00014246,2]
[339972019,1728245455588,-500.0,0.00014246,2]
[339972020,1728245455597,-500.0,0.00014246,2]
[339972021,1728245455607,-477.31303765,0.00014246,2]
[339972022,1728245455617,-483.25340045,0.00014246,2]
[339972023,1728245455626,-646.49,0.00014246,2]
[339972024,1728245455637,-582.16986102,0.00014246,2]
[339972025,1728245455646,-500.0,0.00014246,2]
[339972026,1728245455657,-500.0,0.00014246,2]
[339972027,1728245455666,-500.0,0.00014246,2]
[339972028,1728245455676,-500.0,0.00014246,2]
[339972029,1728245455686,-500.0,0.00014246,2]
[339972030,1728245455698,-500.0,0.00014246,2]
[339972031,1728245455708,-548.58,0.00014246,2]
[339972032,1728245455718,-500.0,0.00014246,2]
[339972033,1728245455728,-500.0,0.00014246,2]
[339972034,1728245455739,-500.0,0.00014246,2]
[339972035,1728245455749,-500.0,0.00014246,2]
[339972036,1728245455761,-500.0,0.00014246,2]
[339972037,1728245455770,-500.0,0.00014246,2]
[339972038,1728245455780,-500.0,0.00014246,2]
[339972039,1728245455790,-500.0,0.00014246,2]
[339972040,1728245455799,-500.0,0.00014246,2]
[339972041,1728245455809,-512.55704927,0.00014246,2]
[339972042,1728245455821,-642.06,0.00014246,2]
[339972043,1728245455831,-500.0,0.00014246,2]
[339972044,1728245455840,-500.0,0.00014246,2]
[339972045,1728245455849,-500.0,0.00014246,2]
[339972046,1728245455860,-500.0,0.00014246,2]
[339972047,1728245455871,-732.29,0.00014246,2]
[339972048,1728245455881,-678.84,0.00014246,2]
[339972049,1728245455891,-744.55,0.00014246,2]
[339972050,1728245455901,-500.0,0.00014246,2]
[339972051,1728245455911,-500.0,0.00014246,2]
[339972052,1728245455921,-500.0,0.00014246,2]
[339972053,1728245455931,-500.0,0.00014246,2]
[339972054,1728245455943,-500.0,0.00014246,2]
[339972055,1728245455953,-500.0,0.00014246,2]
[339972056,1728245455963,-500.0,0.00014246,2]
[339972057,1728245455974,-500.0,0.00014246,2]
[339972058,1728245455985,-500.0,0.00014246,2]
[339972059,1728245455997,-500.0,0.00014246,2]
[339972060,1728245456008,-169.99789139,0.00014246,2]
[339972061,1728245456018,-977.67,0.00014246,2]
[339972062,1728245456030,-701.53,0.00014246,2]
[339972063,1728245456041,-500.0,0.00014246,2]
[339972064,1728245456051,-500.0,0.00014246,2]
[339972065,1728245456061,-631.97,0.00014246,2]
[339972066,1728245456075,-500.0,0.00014246,2]
[339972067,1728245456086,-740.81,0.00014246,2]
[339972068,1728245456097,-566.27,0.00014246,2]
[339972069,1728245456108,-1278.33,0.00014246,2]
[339972070,1728245456118,-500.0,0.00014246,2]
[339972071,1728245456129,-500.0,0.00014246,2]
[339972072,1728245456144,-615.05106241,0.00014246,2]
[339972073,1728245456155,-500.0,0.00014246,2]
[339972074,1728245456166,-500.0,0.00014246,2]
[339972075,1728245456179,-711.1,0.00014246,2]
[339972076,1728245456191,-500.0,0.00014246,2]
[339972077,1728245456201,-500.0,0.00014246,2]
[339972078,1728245456212,-500.0,0.00014246,2]
[339972079,1728245456225,-500.0,0.00014246,2]
[339972080,1728245456236,-500.0,0.00014246,2]
[339972081,1728245456247,-500.0,0.00014246,2]
[339972082,1728245456257,-500.0,0.00014246,2]
[339972083,1728245456268,-500.0,0.00014246,2]
[339972084,1728245456278,-1687.43,0.00014246,2]
[339972085,1728245456288,-500.0,0.00014246,2]
[339972086,1728245456299,-500.0,0.00014246,2]
[339972087,1728245456311,-500.0,0.00014246,2]
[339972088,1728245456324,-500.0,0.00014246,2]
[339972089,1728245456334,-500.0,0.00014246,2]
[339972090,1728245456346,-500.0,0.00014246,2]
[339972091,1728245456356,-369.2130815,0.00014246,2]
[339972092,1728245456366,-500.0,0.00014246,2]
[339972093,1728245456377,-500.0,0.00014246,2]
[339972094,1728245456388,-500.0,0.00014246,2]
[339972095,1728245456399,-500.0,0.00014246,2]
[339972096,1728245456410,-559.4,0.00014246,2]
[339972097,1728245456419,-620.94,0.00014246,2]
[339972098,1728245456428,-570.64,0.00014246,2]
[339972099,1728245456439,-590.68,0.00014246,2]
[339972100,1728245456450,-525.69,0.00014246,2]
[339972101,1728245456461,-731.95,0.00014246,2]
[339972102,1728245456472,-500.0,0.00014246,2]
[339972103,1728245456482,-500.0,0.00014246,2]
[339972104,1728245456491,-500.0,0.00014246,2]
[339972105,1728245456503,-500.0,0.00014246,2]
[339972106,1728245456515,-749.78,0.00014246,2]
[339972107,1728245456524,-500.0,0.00014246,2]